[Event "Titled Tuesday Blitz January 03 Late 2023"]
[White "Mosadeghpour, Masoud"]
[Black "Denishev, Marat"]
[WhiteFideId "12519278"]
[BlackFideId "24131563"]
[WhiteElo "2472"]
[BlackElo "2255"]
[Result "1-0"]
[Round "05"]
[TimeControl "180+2"]
[Date "2023.01.03"]
[WhiteClock "0:01:24"]
[BlackClock "0:00:01"]

1. e4 {[%clk 0:03:00]}  c5 {[%clk 0:02:52]} 2. d4 {[%clk 0:03:00]}  cxd4 {[%clk 0:02:51]} 3. c3 {[%clk 0:03:01]}  d3 {[%clk 0:02:46]} 4. Bxd3 {[%clk 0:03:01]}  g6 {[%clk 0:02:46]} 5. Nf3 {[%clk 0:03:01]}  Bg7 {[%clk 0:02:46]} 6. O-O {[%clk 0:03:02]}  d6 {[%clk 0:02:46]} 7. Qe2 {[%clk 0:03:02]}  Nf6 {[%clk 0:02:45]} 8. Rd1 {[%clk 0:03:03]}  Qc7 {[%clk 0:02:42]} 9. Na3 {[%clk 0:03:03]}  a6 {[%clk 0:02:41]} 10. Nc4 {[%clk 0:03:03]}  b5 {[%clk 0:02:38]} 11. Ne3 {[%clk 0:03:03]}  Bb7 {[%clk 0:02:36]} 12. a4 {[%clk 0:03:01]}  bxa4 {[%clk 0:02:33]} 13. Rxa4 {[%clk 0:03:01]}  O-O {[%clk 0:02:30]} 14. Nc4 {[%clk 0:02:57]}  Nbd7 {[%clk 0:02:22]} 15. e5 {[%clk 0:02:49]}  dxe5 {[%clk 0:02:07]} 16. Ncxe5 {[%clk 0:02:46]}  Nc5 {[%clk 0:02:02]} 17. Rc4 {[%clk 0:02:45]}  Bd5 {[%clk 0:01:52]} 18. Rd4 {[%clk 0:02:40]}  Nxd3 {[%clk 0:01:49]} 19. R1xd3 {[%clk 0:02:40]}  e6 {[%clk 0:01:42]} 20. c4 {[%clk 0:02:39]}  Bxf3 {[%clk 0:01:37]} 21. Nxf3 {[%clk 0:02:38]}  Nd5 {[%clk 0:01:27]} 22. Rh4 {[%clk 0:02:31]}  Nb4 {[%clk 0:01:20]} 23. Rd1 {[%clk 0:02:29]}  Rfd8 {[%clk 0:01:20]} 24. Bd2 {[%clk 0:02:19]}  Nd3 {[%clk 0:01:14]} 25. b3 {[%clk 0:02:15]}  Rab8 {[%clk 0:01:09]} 26. Bg5 {[%clk 0:02:12]}  f6 {[%clk 0:01:02]} 27. Rxd3 {[%clk 0:02:05]}  fxg5 {[%clk 0:01:00]} 28. Qxe6+ {[%clk 0:01:57]}  Qf7 {[%clk 0:00:41]} 29. Qxf7+ {[%clk 0:01:56]}  Kxf7 {[%clk 0:00:42]} 30. Nxg5+ {[%clk 0:01:57]}  Kg8 {[%clk 0:00:43]} 31. Rxd8+ {[%clk 0:01:56]}  Rxd8 {[%clk 0:00:43]} 32. g3 {[%clk 0:01:56]}  Bf6 {[%clk 0:00:39]} 33. f4 {[%clk 0:01:42]}  Rd3 {[%clk 0:00:33]} 34. Rxh7 {[%clk 0:01:40]}  Bxg5 {[%clk 0:00:31]} 35. Ra7 {[%clk 0:01:40]}  Bf6 {[%clk 0:00:19]} 36. Rxa6 {[%clk 0:01:40]}  Kf7 {[%clk 0:00:18]} 37. b4 {[%clk 0:01:39]}  Rc3 {[%clk 0:00:14]} 38. Rc6 {[%clk 0:01:38]}  Rc2 {[%clk 0:00:10]} 39. b5 {[%clk 0:01:36]}  Bd4+ {[%clk 0:00:10]} 40. Kf1 {[%clk 0:01:32]}  Rxh2 {[%clk 0:00:10]} 41. b6 {[%clk 0:01:32]}  Rb2 {[%clk 0:00:09]} 42. c5 {[%clk 0:01:31]}  Rb5 {[%clk 0:00:06]} 43. Rc7+ {[%clk 0:01:28]}  Ke6 {[%clk 0:00:06]} 44. b7 {[%clk 0:01:29]}  Kd5 {[%clk 0:00:04]} 45. c6 {[%clk 0:01:29]}  Kd6 {[%clk 0:00:04]} 46. Rc8 {[%clk 0:01:29]}  Rb1+ {[%clk 0:00:03]} 47. Ke2 {[%clk 0:01:29]}  Ba7 {[%clk 0:00:04]} 48. Kf3 {[%clk 0:01:28]}  Rb3+ {[%clk 0:00:04]} 49. Kg4 {[%clk 0:01:28]}  Rb2 {[%clk 0:00:04]} 50. Kg5 {[%clk 0:01:27]}  Rb3 {[%clk 0:00:03]} 51. g4 {[%clk 0:01:27]}  Rb4 {[%clk 0:00:01]} 52. Ra8 {[%clk 0:01:26]}  Be3 {[%clk 0:00:01]} 53. b8=Q+ {[%clk 0:01:24]} 1-0


[Site "https://www.chess.com"]

[Event "Titled Tuesday Blitz January 03 Late 2023"]
[White "Martynov, Pavel"]
[Black "Mahdavi, Reza"]
[WhiteFideId "4101260"]
[BlackFideId "12595926"]
[WhiteElo "2414"]
[BlackElo "2339"]
[Result "0-1"]
[Round "05"]
[TimeControl "180+2"]
[Date "2023.01.03"]
[WhiteClock "0:00:13"]
[BlackClock "0:01:31"]

1. e4 {[%clk 0:03:00]}  c5 {[%clk 0:03:00]} 2. Nf3 {[%clk 0:03:00]}  e6 {[%clk 0:03:00]} 3. Nc3 {[%clk 0:03:00]}  Nc6 {[%clk 0:03:00]} 4. g3 {[%clk 0:03:00]}  d5 {[%clk 0:03:00]} 5. exd5 {[%clk 0:03:00]}  exd5 {[%clk 0:03:01]} 6. d4 {[%clk 0:03:00]}  cxd4 {[%clk 0:03:00]} 7. Nxd4 {[%clk 0:03:00]}  Nf6 {[%clk 0:03:01]} 8. Bg2 {[%clk 0:03:00]}  Bg4 {[%clk 0:03:02]} 9. f3 {[%clk 0:02:50]}  Bd7 {[%clk 0:03:02]} 10. O-O {[%clk 0:02:48]}  Be7 {[%clk 0:03:02]} 11. Kh1 {[%clk 0:02:47]}  O-O {[%clk 0:03:03]} 12. Bg5 {[%clk 0:02:43]}  h6 {[%clk 0:03:01]} 13. Be3 {[%clk 0:02:38]}  Re8 {[%clk 0:03:01]} 14. f4 {[%clk 0:02:31]}  Bg4 {[%clk 0:02:56]} 15. Qd2 {[%clk 0:02:27]}  Na5 {[%clk 0:02:56]} 16. b3 {[%clk 0:02:23]}  Rc8 {[%clk 0:02:56]} 17. a3 {[%clk 0:02:20]}  Qd7 {[%clk 0:02:49]} 18. Bf2 {[%clk 0:02:13]}  Bh3 {[%clk 0:02:46]} 19. Nf3 {[%clk 0:01:36]}  Bxg2+ {[%clk 0:02:41]} 20. Kxg2 {[%clk 0:01:37]}  Qc6 {[%clk 0:02:38]} 21. Ne2 {[%clk 0:01:25]}  Qxc2 {[%clk 0:02:31]} 22. Qxa5 {[%clk 0:01:22]}  Qxe2 {[%clk 0:02:32]} 23. Qxa7 {[%clk 0:01:04]}  Bc5 {[%clk 0:02:26]} 24. Qxb7 {[%clk 0:01:01]}  Ng4 {[%clk 0:02:25]} 25. Rae1 {[%clk 0:00:51]}  Ne3+ {[%clk 0:02:25]} 26. Kh3 {[%clk 0:00:42]}  Qxf3 {[%clk 0:02:20]} 27. Bxe3 {[%clk 0:00:40]}  Qh5+ {[%clk 0:02:20]} 28. Kg2 {[%clk 0:00:40]}  Bxe3 {[%clk 0:02:21]} 29. Rxe3 {[%clk 0:00:37]}  Rc2+ {[%clk 0:02:20]} 30. Rf2 {[%clk 0:00:36]}  Rxf2+ {[%clk 0:02:17]} 31. Kxf2 {[%clk 0:00:36]}  Qxh2+ {[%clk 0:02:18]} 32. Kf1 {[%clk 0:00:28]}  Qh3+ {[%clk 0:02:07]} 33. Kf2 {[%clk 0:00:28]}  Rxe3 {[%clk 0:02:05]} 34. Qb8+ {[%clk 0:00:24]}  Kh7 {[%clk 0:02:04]} 35. Kxe3 {[%clk 0:00:25]}  Qxg3+ {[%clk 0:02:04]} 36. Kd4 {[%clk 0:00:24]}  h5 {[%clk 0:02:03]} 37. a4 {[%clk 0:00:18]}  h4 {[%clk 0:02:01]} 38. a5 {[%clk 0:00:19]}  h3 {[%clk 0:02:01]} 39. a6 {[%clk 0:00:19]}  h2 {[%clk 0:01:52]} 40. a7 {[%clk 0:00:20]}  Qf2+ {[%clk 0:01:52]} 41. Ke5 {[%clk 0:00:19]}  Qe3+ {[%clk 0:01:44]} 42. Kd6 {[%clk 0:00:19]}  h1=Q {[%clk 0:01:31]} 43. a8=Q {[%clk 0:00:16]}  Qh6+ {[%clk 0:01:32]} 44. Kxd5 {[%clk 0:00:13]}  Qhe6# {[%clk 0:01:31]} 0-1


[Site "https://www.chess.com"]

[Event "Titled Tuesday Blitz January 03 Late 2023"]
[White "Papasimakopoulos, Alexandros"]
[Black "Martinez Reyes, Pedro Ramon"]
[WhiteFideId "4244125"]
[BlackFideId "3901807"]
[WhiteElo "2401"]
[BlackElo "2376"]
[Result "1-0"]
[Round "05"]
[TimeControl "180+2"]
[Date "2023.01.03"]
[WhiteClock "0:01:38"]
[BlackClock "0:00:26"]

1. d4 {[%clk 0:03:00]}  Nf6 {[%clk 0:02:59]} 2. c4 {[%clk 0:02:37]}  d6 {[%clk 0:02:59]} 3. Nc3 {[%clk 0:02:37]}  Nbd7 {[%clk 0:03:00]} 4. Nf3 {[%clk 0:02:37]}  e5 {[%clk 0:03:01]} 5. Bg5 {[%clk 0:02:37]}  Be7 {[%clk 0:03:01]} 6. e3 {[%clk 0:02:37]}  O-O {[%clk 0:03:01]} 7. Be2 {[%clk 0:02:38]}  Re8 {[%clk 0:03:01]} 8. O-O {[%clk 0:02:38]}  h6 {[%clk 0:03:01]} 9. Bh4 {[%clk 0:02:38]}  exd4 {[%clk 0:02:58]} 10. exd4 {[%clk 0:02:36]}  Nf8 {[%clk 0:02:59]} 11. h3 {[%clk 0:02:35]}  Ng6 {[%clk 0:02:59]} 12. Bg3 {[%clk 0:02:34]}  Nh5 {[%clk 0:03:00]} 13. Bh2 {[%clk 0:02:34]}  Nhf4 {[%clk 0:03:00]} 14. Re1 {[%clk 0:02:34]}  Nxe2+ {[%clk 0:03:00]} 15. Qxe2 {[%clk 0:02:35]}  Bd7 {[%clk 0:02:59]} 16. Qd3 {[%clk 0:02:34]}  Bf8 {[%clk 0:02:49]} 17. Rxe8 {[%clk 0:02:31]}  Qxe8 {[%clk 0:02:48]} 18. Nd5 {[%clk 0:02:31]}  Qd8 {[%clk 0:02:47]} 19. Re1 {[%clk 0:02:32]}  Ne7 {[%clk 0:02:43]} 20. Ne3 {[%clk 0:02:29]}  a6 {[%clk 0:02:32]} 21. b4 {[%clk 0:02:27]}  Bc6 {[%clk 0:02:08]} 22. d5 {[%clk 0:02:26]}  Bd7 {[%clk 0:02:03]} 23. Nd4 {[%clk 0:02:26]}  a5 {[%clk 0:01:57]} 24. b5 {[%clk 0:02:21]}  b6 {[%clk 0:01:57]} 25. Nc6 {[%clk 0:02:21]}  Nxc6 {[%clk 0:01:54]} 26. bxc6 {[%clk 0:02:20]}  Bc8 {[%clk 0:01:53]} 27. Nc2 {[%clk 0:02:18]}  Ba6 {[%clk 0:01:43]} 28. Nd4 {[%clk 0:02:17]}  Qh4 {[%clk 0:01:42]} 29. Bg3 {[%clk 0:02:16]}  Qf6 {[%clk 0:01:39]} 30. a4 {[%clk 0:02:15]}  g6 {[%clk 0:01:19]} 31. Nb5 {[%clk 0:02:12]}  Bxb5 {[%clk 0:01:18]} 32. cxb5 {[%clk 0:02:12]}  Bg7 {[%clk 0:01:17]} 33. Kh2 {[%clk 0:02:12]}  h5 {[%clk 0:01:13]} 34. h4 {[%clk 0:02:11]}  Bh6 {[%clk 0:00:42]} 35. Qe4 {[%clk 0:02:10]}  Bf8 {[%clk 0:00:37]} 36. f3 {[%clk 0:02:03]}  Qc3 {[%clk 0:00:31]} 37. Re2 {[%clk 0:01:58]}  Qb4 {[%clk 0:00:31]} 38. Be1 {[%clk 0:01:46]}  Qxe4 {[%clk 0:00:31]} 39. Rxe4 {[%clk 0:01:45]}  f5 {[%clk 0:00:31]} 40. Re6 {[%clk 0:01:45]}  Kf7 {[%clk 0:00:32]} 41. g4 {[%clk 0:01:45]}  fxg4 {[%clk 0:00:27]} 42. fxg4 {[%clk 0:01:46]}  Re8 {[%clk 0:00:27]} 43. Rxe8 {[%clk 0:01:37]}  Kxe8 {[%clk 0:00:28]} 44. gxh5 {[%clk 0:01:37]}  gxh5 {[%clk 0:00:28]} 45. Kg3 {[%clk 0:01:38]}  Be7 {[%clk 0:00:29]} 46. Kf4 {[%clk 0:01:38]}  Kf7 {[%clk 0:00:28]} 47. Kf5 {[%clk 0:01:38]}  Bd8 {[%clk 0:00:28]} 48. Bf2 {[%clk 0:01:38]}  Kg7 {[%clk 0:00:27]} 49. Ke6 {[%clk 0:01:38]}  Kg6 {[%clk 0:00:26]} 50. Kd7 {[%clk 0:01:38]} 1-0


[Site "https://www.chess.com"]

[Event "Titled Tuesday Blitz January 03 Late 2023"]
[White "Chen, Justin"]
[Black "Senthil, Maran K"]
[WhiteFideId "2098199"]
[BlackFideId "25035681"]
[WhiteElo "2333"]
[BlackElo "2209"]
[Result "1-0"]
[Round "05"]
[TimeControl "180+2"]
[Date "2023.01.03"]
[WhiteClock "0:01:18"]
[BlackClock "0:00:03"]

1. e4 {[%clk 0:02:56]}  c5 {[%clk 0:02:58]} 2. Nc3 {[%clk 0:02:54]}  g6 {[%clk 0:02:58]} 3. g3 {[%clk 0:02:55]}  Bg7 {[%clk 0:02:58]} 4. Bg2 {[%clk 0:02:56]}  Nc6 {[%clk 0:02:59]} 5. d3 {[%clk 0:02:57]}  Rb8 {[%clk 0:02:57]} 6. Be3 {[%clk 0:02:52]}  d6 {[%clk 0:02:57]} 7. Qd2 {[%clk 0:02:46]}  b5 {[%clk 0:02:56]} 8. a3 {[%clk 0:02:47]}  a5 {[%clk 0:02:54]} 9. Nge2 {[%clk 0:02:47]}  b4 {[%clk 0:02:55]} 10. axb4 {[%clk 0:02:48]}  axb4 {[%clk 0:02:56]} 11. Nd1 {[%clk 0:02:49]}  Nd4 {[%clk 0:02:54]} 12. O-O {[%clk 0:02:45]}  Nf6 {[%clk 0:02:53]} 13. Nxd4 {[%clk 0:02:42]}  cxd4 {[%clk 0:02:51]} 14. Bxd4 {[%clk 0:02:42]}  O-O {[%clk 0:02:51]} 15. h3 {[%clk 0:02:29]}  Qc7 {[%clk 0:02:35]} 16. Kh2 {[%clk 0:02:00]}  e5 {[%clk 0:02:33]} 17. Be3 {[%clk 0:01:59]}  Be6 {[%clk 0:02:32]} 18. f4 {[%clk 0:01:48]}  exf4 {[%clk 0:02:14]} 19. gxf4 {[%clk 0:01:48]}  Rfc8 {[%clk 0:02:13]} 20. Rf2 {[%clk 0:01:44]}  Nh5 {[%clk 0:02:02]} 21. Bf3 {[%clk 0:01:37]}  f5 {[%clk 0:01:25]} 22. Bxh5 {[%clk 0:01:31]}  gxh5 {[%clk 0:01:24]} 23. Rg2 {[%clk 0:01:32]}  Kh8 {[%clk 0:01:10]} 24. Qf2 {[%clk 0:01:29]}  Bf6 {[%clk 0:00:46]} 25. Bd4 {[%clk 0:01:20]}  Rf8 {[%clk 0:00:08]} 26. Ra7 {[%clk 0:01:20]}  Rb7 {[%clk 0:00:06]} 27. Bxf6+ {[%clk 0:01:17]}  Rxf6 {[%clk 0:00:03]} 28. Qd4 {[%clk 0:01:18]} 1-0


[Site "https://www.chess.com"]

[Event "Titled Tuesday Blitz January 03 Late 2023"]
[White "Kanakaris, Georgios"]
[Black "Adewumi, Tanitoluwa"]
[WhiteFideId "4209460"]
[BlackFideId "30966396"]
[WhiteElo "2391"]
[BlackElo "2283"]
[Result "1-0"]
[Round "05"]
[TimeControl "180+2"]
[Date "2023.01.03"]
[WhiteClock "0:00:38"]
[BlackClock "0:00:04"]

1. d4 {[%clk 0:03:00]}  Nf6 {[%clk 0:02:58]} 2. Nf3 {[%clk 0:03:01]}  e6 {[%clk 0:02:57]} 3. g3 {[%clk 0:03:01]}  c5 {[%clk 0:02:51]} 4. Bg2 {[%clk 0:03:00]}  Nc6 {[%clk 0:02:50]} 5. O-O {[%clk 0:03:00]}  d5 {[%clk 0:02:49]} 6. c4 {[%clk 0:02:52]}  dxc4 {[%clk 0:02:47]} 7. dxc5 {[%clk 0:02:52]}  Qxd1 {[%clk 0:02:44]} 8. Rxd1 {[%clk 0:02:53]}  Bxc5 {[%clk 0:02:43]} 9. Nbd2 {[%clk 0:02:53]}  c3 {[%clk 0:02:38]} 10. bxc3 {[%clk 0:02:54]}  Ke7 {[%clk 0:02:25]} 11. Nb3 {[%clk 0:02:50]}  Bd6 {[%clk 0:02:23]} 12. Ne1 {[%clk 0:02:43]}  e5 {[%clk 0:02:14]} 13. c4 {[%clk 0:02:38]}  Be6 {[%clk 0:01:50]} 14. c5 {[%clk 0:02:36]}  Bc7 {[%clk 0:01:48]} 15. Bb2 {[%clk 0:02:36]}  Rhd8 {[%clk 0:01:45]} 16. Nd3 {[%clk 0:02:34]}  Bd5 {[%clk 0:01:30]} 17. f3 {[%clk 0:02:09]}  g6 {[%clk 0:01:07]} 18. Rab1 {[%clk 0:01:52]}  e4 {[%clk 0:01:00]} 19. Bxf6+ {[%clk 0:01:45]}  Kxf6 {[%clk 0:00:59]} 20. fxe4 {[%clk 0:01:45]}  Bc4 {[%clk 0:00:55]} 21. Nf4 {[%clk 0:01:30]}  Bxf4 {[%clk 0:00:29]} 22. gxf4 {[%clk 0:01:30]}  Bxe2 {[%clk 0:00:28]} 23. Rd6+ {[%clk 0:01:23]}  Ke7 {[%clk 0:00:12]} 24. e5 {[%clk 0:01:20]}  Rac8 {[%clk 0:00:10]} 25. Nd2 {[%clk 0:01:16]}  Ba6 {[%clk 0:00:06]} 26. Ne4 {[%clk 0:01:15]}  Nd4 {[%clk 0:00:05]} 27. Kf2 {[%clk 0:01:06]}  Ne6 {[%clk 0:00:02]} 28. Bh3 {[%clk 0:01:01]}  Rxd6 {[%clk 0:00:02]} 29. cxd6+ {[%clk 0:00:59]}  Kd7 {[%clk 0:00:02]} 30. Nf6+ {[%clk 0:00:54]}  Kd8 {[%clk 0:00:02]} 31. Bxe6 {[%clk 0:00:50]}  fxe6 {[%clk 0:00:03]} 32. Rb2 {[%clk 0:00:51]}  Rc4 {[%clk 0:00:03]} 33. Kg3 {[%clk 0:00:47]}  h6 {[%clk 0:00:03]} 34. Ng4 {[%clk 0:00:45]}  g5 {[%clk 0:00:01]} 35. fxg5 {[%clk 0:00:38]}  hxg5 {[%clk 0:00:02]} 36. Rf2 {[%clk 0:00:38]}  Rc3+ {[%clk 0:00:02]} 37. Kg2 {[%clk 0:00:37]}  Bd3 {[%clk 0:00:02]} 38. Rf8+ {[%clk 0:00:37]}  Kd7 {[%clk 0:00:02]} 39. Nf6+ {[%clk 0:00:37]}  Kc6 {[%clk 0:00:03]} 40. Rc8+ {[%clk 0:00:37]}  Kb6 {[%clk 0:00:04]} 41. Rxc3 {[%clk 0:00:38]} 1-0


[Site "https://www.chess.com"]

[Event "Titled Tuesday Blitz January 03 Late 2023"]
[White "Goltsev, Dmitry"]
[Black "Sreyas Payyappat"]
[WhiteFideId "24176710"]
[BlackFideId "46674969"]
[WhiteElo "2269"]
[BlackElo "2076"]
[Result "1-0"]
[Round "05"]
[TimeControl "180+2"]
[Date "2023.01.03"]
[WhiteClock "0:01:48"]
[BlackClock "0:01:19"]

1. e4 {[%clk 0:02:59]}  c6 {[%clk 0:02:59]} 2. d4 {[%clk 0:02:59]}  d5 {[%clk 0:02:59]} 3. Nc3 {[%clk 0:02:58]}  dxe4 {[%clk 0:02:59]} 4. Nxe4 {[%clk 0:02:59]}  Nf6 {[%clk 0:02:59]} 5. Nxf6+ {[%clk 0:02:58]}  exf6 {[%clk 0:02:59]} 6. Nf3 {[%clk 0:02:58]}  Bd6 {[%clk 0:03:00]} 7. Bd3 {[%clk 0:02:58]}  O-O {[%clk 0:03:00]} 8. O-O {[%clk 0:02:58]}  Bg4 {[%clk 0:03:00]} 9. h3 {[%clk 0:02:57]}  Bh5 {[%clk 0:03:00]} 10. c3 {[%clk 0:02:55]}  Nd7 {[%clk 0:02:59]} 11. Re1 {[%clk 0:02:55]}  Qc7 {[%clk 0:02:57]} 12. Be3 {[%clk 0:02:55]}  Rfe8 {[%clk 0:02:56]} 13. Qc2 {[%clk 0:02:49]}  h6 {[%clk 0:02:43]} 14. g4 {[%clk 0:02:47]}  Bg6 {[%clk 0:02:42]} 15. Bxg6 {[%clk 0:02:45]}  fxg6 {[%clk 0:02:43]} 16. Qxg6 {[%clk 0:02:46]}  Nf8 {[%clk 0:02:44]} 17. Qd3 {[%clk 0:02:46]}  Ne6 {[%clk 0:02:44]} 18. Nh4 {[%clk 0:02:45]}  Bf4 {[%clk 0:02:41]} 19. Ng6 {[%clk 0:02:39]}  Bxe3 {[%clk 0:02:40]} 20. Rxe3 {[%clk 0:02:40]}  Nf4 {[%clk 0:02:29]} 21. Nxf4 {[%clk 0:02:36]}  Qxf4 {[%clk 0:02:29]} 22. Rae1 {[%clk 0:02:36]}  Rxe3 {[%clk 0:02:29]} 23. Qxe3 {[%clk 0:02:37]}  Qxe3 {[%clk 0:02:26]} 24. Rxe3 {[%clk 0:02:36]}  Kf7 {[%clk 0:02:26]} 25. f4 {[%clk 0:02:36]}  a5 {[%clk 0:02:26]} 26. Kf2 {[%clk 0:02:36]}  a4 {[%clk 0:02:27]} 27. Ke2 {[%clk 0:02:35]}  a3 {[%clk 0:02:28]} 28. b4 {[%clk 0:02:34]}  b6 {[%clk 0:02:26]} 29. Kd3 {[%clk 0:02:34]}  c5 {[%clk 0:02:23]} 30. bxc5 {[%clk 0:02:33]}  bxc5 {[%clk 0:02:24]} 31. dxc5 {[%clk 0:02:34]}  Rb8 {[%clk 0:02:24]} 32. Re2 {[%clk 0:02:34]}  Rb5 {[%clk 0:02:22]} 33. c6 {[%clk 0:02:26]}  Rc5 {[%clk 0:02:21]} 34. Re4 {[%clk 0:02:25]}  Rxc6 {[%clk 0:02:19]} 35. Ra4 {[%clk 0:02:25]}  Rd6+ {[%clk 0:02:19]} 36. Kc2 {[%clk 0:02:24]}  Re6 {[%clk 0:02:17]} 37. Ra7+ {[%clk 0:02:22]}  Kf8 {[%clk 0:02:15]} 38. Rxa3 {[%clk 0:02:22]}  Re3 {[%clk 0:02:15]} 39. Ra4 {[%clk 0:02:15]}  Rxh3 {[%clk 0:02:13]} 40. f5 {[%clk 0:02:16]}  h5 {[%clk 0:02:11]} 41. gxh5 {[%clk 0:02:11]}  Rxh5 {[%clk 0:02:12]} 42. Rf4 {[%clk 0:02:10]}  Ke7 {[%clk 0:02:11]} 43. a4 {[%clk 0:02:10]}  Kd6 {[%clk 0:02:12]} 44. a5 {[%clk 0:02:10]}  Ke5 {[%clk 0:02:10]} 45. Rb4 {[%clk 0:02:09]}  Rh2+ {[%clk 0:02:07]} 46. Kb3 {[%clk 0:02:09]}  Rh1 {[%clk 0:02:08]} 47. a6 {[%clk 0:02:09]}  Rh8 {[%clk 0:02:03]} 48. a7 {[%clk 0:02:07]}  Ra8 {[%clk 0:02:02]} 49. Rb5+ {[%clk 0:02:07]}  Kd6 {[%clk 0:01:58]} 50. Ra5 {[%clk 0:02:07]}  Kc6 {[%clk 0:01:59]} 51. Kc4 {[%clk 0:02:07]}  Kb6 {[%clk 0:01:59]} 52. Ra1 {[%clk 0:02:07]}  Kc6 {[%clk 0:01:57]} 53. Kd4 {[%clk 0:02:06]}  Rd8+ {[%clk 0:01:55]} 54. Ke4 {[%clk 0:02:06]}  Ra8 {[%clk 0:01:53]} 55. c4 {[%clk 0:02:03]}  Kc5 {[%clk 0:01:52]} 56. Ra4 {[%clk 0:02:03]}  Kc6 {[%clk 0:01:44]} 57. Kf4 {[%clk 0:02:02]}  Kd6 {[%clk 0:01:44]} 58. Ra5 {[%clk 0:01:59]}  Kc6 {[%clk 0:01:44]} 59. Kg4 {[%clk 0:01:58]}  Kb6 {[%clk 0:01:44]} 60. Ra4 {[%clk 0:01:58]}  Kc5 {[%clk 0:01:31]} 61. Kh5 {[%clk 0:01:58]}  Kd4 {[%clk 0:01:30]} 62. Kg6 {[%clk 0:01:57]}  Ke4 {[%clk 0:01:30]} 63. Ra5 {[%clk 0:01:55]}  Kd4 {[%clk 0:01:29]} 64. c5 {[%clk 0:01:55]}  Ke5 {[%clk 0:01:28]} 65. c6+ {[%clk 0:01:47]}  Kd6 {[%clk 0:01:28]} 66. Ra6 {[%clk 0:01:48]}  Kc7 {[%clk 0:01:19]} 67. Kxg7 {[%clk 0:01:48]} 1-0


[Site "https://www.chess.com"]

[Event "Titled Tuesday Blitz January 03 Late 2023"]
[White "Leiva, Gianmarco"]
[Black "Fernandez, Maria Florencia"]
[WhiteFideId "3804399"]
[BlackFideId "116459"]
[WhiteElo "2392"]
[BlackElo "2129"]
[Result "0-1"]
[Round "05"]
[TimeControl "180+2"]
[Date "2023.01.03"]
[WhiteClock "0:00:04"]
[BlackClock "0:00:06"]

1. e4 {[%clk 0:02:55]}  d6 {[%clk 0:02:57]} 2. d4 {[%clk 0:02:54]}  Nf6 {[%clk 0:02:57]} 3. Bd3 {[%clk 0:02:52]}  g6 {[%clk 0:02:58]} 4. Nf3 {[%clk 0:02:52]}  Bg7 {[%clk 0:02:58]} 5. O-O {[%clk 0:02:52]}  O-O {[%clk 0:02:58]} 6. c3 {[%clk 0:02:51]}  Nbd7 {[%clk 0:02:53]} 7. Re1 {[%clk 0:02:44]}  e5 {[%clk 0:02:52]} 8. Na3 {[%clk 0:02:40]}  c6 {[%clk 0:02:48]} 9. Bg5 {[%clk 0:02:34]}  h6 {[%clk 0:02:45]} 10. Bh4 {[%clk 0:02:34]}  g5 {[%clk 0:02:45]} 11. Bg3 {[%clk 0:02:35]}  Nh5 {[%clk 0:02:45]} 12. Nxe5 {[%clk 0:02:19]}  Nxe5 {[%clk 0:02:20]} 13. dxe5 {[%clk 0:02:18]}  Nxg3 {[%clk 0:02:12]} 14. hxg3 {[%clk 0:02:18]}  Bxe5 {[%clk 0:01:52]} 15. Nc4 {[%clk 0:02:16]}  Bg7 {[%clk 0:01:52]} 16. Bc2 {[%clk 0:02:15]}  d5 {[%clk 0:01:44]} 17. exd5 {[%clk 0:02:11]}  Qxd5 {[%clk 0:01:42]} 18. Qxd5 {[%clk 0:01:34]}  cxd5 {[%clk 0:01:43]} 19. Nd6 {[%clk 0:01:35]}  Be6 {[%clk 0:01:23]} 20. Rad1 {[%clk 0:01:30]}  Rfd8 {[%clk 0:01:00]} 21. Nb5 {[%clk 0:01:20]}  Rd7 {[%clk 0:00:46]} 22. Rd2 {[%clk 0:01:16]}  a6 {[%clk 0:00:36]} 23. Nd4 {[%clk 0:01:16]}  Rd6 {[%clk 0:00:22]} 24. Bb3 {[%clk 0:01:04]}  Rad8 {[%clk 0:00:21]} 25. Red1 {[%clk 0:01:04]}  Bf6 {[%clk 0:00:17]} 26. f3 {[%clk 0:01:01]}  Kg7 {[%clk 0:00:15]} 27. Kf2 {[%clk 0:01:01]}  Bc8 {[%clk 0:00:10]} 28. Bc2 {[%clk 0:00:43]}  Rb6 {[%clk 0:00:06]} 29. Bb1 {[%clk 0:00:40]}  a5 {[%clk 0:00:06]} 30. Ne2 {[%clk 0:00:36]}  Rbd6 {[%clk 0:00:04]} 31. Bc2 {[%clk 0:00:31]}  b5 {[%clk 0:00:04]} 32. Bb3 {[%clk 0:00:30]}  a4 {[%clk 0:00:04]} 33. Rxd5 {[%clk 0:00:22]}  Rxd5 {[%clk 0:00:03]} 34. Bxd5 {[%clk 0:00:17]}  Be6 {[%clk 0:00:01]} 35. c4 {[%clk 0:00:05]}  bxc4 {[%clk 0:00:01]} 36. Bxe6 {[%clk 0:00:05]}  Rxd1 {[%clk 0:00:02]} 37. Bxc4 {[%clk 0:00:06]}  Rd2 {[%clk 0:00:02]} 38. Bb5 {[%clk 0:00:05]}  Rxb2 {[%clk 0:00:02]} 39. Bxa4 {[%clk 0:00:05]}  Rxa2 {[%clk 0:00:03]} 40. Bb3 {[%clk 0:00:06]}  Rb2 {[%clk 0:00:03]} 41. Bc4 {[%clk 0:00:06]}  Bd4+ {[%clk 0:00:03]} 42. Ke1 {[%clk 0:00:06]}  Be3 {[%clk 0:00:03]} 43. Bd3 {[%clk 0:00:06]}  Ra2 {[%clk 0:00:02]} 44. Kd1 {[%clk 0:00:05]}  Rd2+ {[%clk 0:00:03]} 45. Ke1 {[%clk 0:00:05]}  Rxd3 {[%clk 0:00:03]} 46. g4 {[%clk 0:00:06]}  Ra3 {[%clk 0:00:03]} 47. Ng3 {[%clk 0:00:07]}  Ra1+ {[%clk 0:00:02]} 48. Ke2 {[%clk 0:00:07]}  Bf4 {[%clk 0:00:03]} 49. Nf5+ {[%clk 0:00:06]}  Kg6 {[%clk 0:00:04]} 50. Ne7+ {[%clk 0:00:07]}  Kf6 {[%clk 0:00:04]} 51. Nd5+ {[%clk 0:00:07]}  Ke5 {[%clk 0:00:04]} 52. Nb4 {[%clk 0:00:07]}  Rb1 {[%clk 0:00:03]} 53. Nd3+ {[%clk 0:00:06]}  Kd4 {[%clk 0:00:03]} 54. g3 {[%clk 0:00:01]}  Bxg3 {[%clk 0:00:03]} 55. Kd2 {[%clk 0:00:01]}  Bf4+ {[%clk 0:00:03]} 56. Kc2 {[%clk 0:00:02]}  Rf1 {[%clk 0:00:03]} 57. Nb4 {[%clk 0:00:02]}  Rxf3 {[%clk 0:00:03]} 58. Nc6+ {[%clk 0:00:03]}  Ke3 {[%clk 0:00:04]} 59. Ne7 {[%clk 0:00:03]}  Rf2+ {[%clk 0:00:04]} 60. Kc3 {[%clk 0:00:03]}  Kf3 {[%clk 0:00:05]} 61. Kd3 {[%clk 0:00:03]}  Kxg4 {[%clk 0:00:05]} 62. Nd5 {[%clk 0:00:04]}  Rd2+ {[%clk 0:00:06]} 63. Ke4 {[%clk 0:00:04]}  Rxd5 {[%clk 0:00:06]} 0-1


[Site "https://www.chess.com"]